[Event "Late-Titled-Tuesday-Blitz-February-27-2024"]
[Site "Chess.com"]
[Date "2024.02.27"]
[Round "8"]
[White "Mikhail646464"]
[Black "EDaMatta"]
[Result "1-0"]
[WhiteElo "2356"]
[BlackElo "2233"]
[TimeControl "180+1"]
[EndTime "15:24:16 PST"]
[Termination "Mikhail646464 won by checkmate"]

1. d4 {[%clk 0:02:50.1]} 1... d5 {[%clk 0:03:00.1]} 2. Nf3 {[%clk 0:02:48.4]}
2... Nf6 {[%clk 0:02:59.9]} 3. c4 {[%clk 0:02:43.7]} 3... c6 {[%clk 0:02:59.8]}
4. g3 {[%clk 0:02:41]} 4... dxc4 {[%clk 0:02:59.7]} 5. Bg2 {[%clk 0:02:41.4]}
5... b5 {[%clk 0:03:00.1]} 6. O-O {[%clk 0:02:40.8]} 6... Bb7 {[%clk 0:03:00.2]}
7. a4 {[%clk 0:02:38.9]} 7... e6 {[%clk 0:02:59.5]} 8. Ne5 {[%clk 0:02:33.1]}
8... a6 {[%clk 0:02:56.2]} 9. Nc3 {[%clk 0:02:24.1]} 9... Qb6 {[%clk 0:02:54.3]}
10. e4 {[%clk 0:02:07.4]} 10... Be7 {[%clk 0:02:39.1]} 11. Be3 {[%clk
0:02:05.9]} 11... Qc7 {[%clk 0:02:30]} 12. Bf4 {[%clk 0:01:54.1]} 12... Qc8
{[%clk 0:02:30.2]} 13. d5 {[%clk 0:01:44.3]} 13... cxd5 {[%clk 0:02:23.2]} 14.
exd5 {[%clk 0:01:42.9]} 14... exd5 {[%clk 0:02:20.3]} 15. Nxd5 {[%clk
0:01:31.5]} 15... Nxd5 {[%clk 0:02:16.2]} 16. Bxd5 {[%clk 0:01:31.5]} 16... O-O
{[%clk 0:02:16.3]} 17. axb5 {[%clk 0:01:26.8]} 17... Rd8 {[%clk 0:02:06.1]} 18.
Bxf7+ {[%clk 0:01:23.3]} 18... Kf8 {[%clk 0:01:58.5]} 19. Qh5 {[%clk 0:01:16.6]}
19... Nd7 {[%clk 0:01:46.6]} 20. Qxh7 {[%clk 0:01:04.1]} 20... Bf6 {[%clk
0:01:40.7]} 21. Qg8+ {[%clk 0:00:59.7]} 21... Ke7 {[%clk 0:01:40.7]} 22. Ng6#
{[%clk 0:01:00.3]} 1-0

[Event "Late-Titled-Tuesday-Blitz-February-27-2024"]
[Site "Chess.com"]
[Date "2024.02.27"]
[Round "8"]
[White "Nick12772"]
[Black "rdarruda"]
[Result "0-1"]
[WhiteElo "2375"]
[BlackElo "2501"]
[TimeControl "180+1"]
[EndTime "15:24:37 PST"]
[Termination "rdarruda won by resignation"]

1. Nf3 {[%clk 0:03:00.9]} 1... d5 {[%clk 0:02:59.3]} 2. g3 {[%clk 0:03:01.3]}
2... Nf6 {[%clk 0:02:58.8]} 3. Bg2 {[%clk 0:03:01.8]} 3... g6 {[%clk 0:02:59.1]}
4. O-O {[%clk 0:03:02.4]} 4... Bg7 {[%clk 0:02:59.2]} 5. d4 {[%clk 0:03:03]}
5... O-O {[%clk 0:02:59]} 6. c4 {[%clk 0:03:03.7]} 6... c6 {[%clk 0:02:58.6]} 7.
cxd5 {[%clk 0:03:04.1]} 7... cxd5 {[%clk 0:02:58]} 8. Ne5 {[%clk 0:03:04.7]}
8... Nc6 {[%clk 0:02:56.6]} 9. Nxc6 {[%clk 0:03:04.2]} 9... bxc6 {[%clk
0:02:56.6]} 10. Nc3 {[%clk 0:03:05.1]} 10... Bf5 {[%clk 0:02:53.6]} 11. Bf4
{[%clk 0:03:05]} 11... Ne4 {[%clk 0:02:52.8]} 12. Nxe4 {[%clk 0:03:03.8]} 12...
Bxe4 {[%clk 0:02:53.7]} 13. Bxe4 {[%clk 0:03:03.6]} 13... dxe4 {[%clk
0:02:54.4]} 14. Be5 {[%clk 0:02:52.2]} 14... Qb6 {[%clk 0:02:51.9]} 15. Bxg7
{[%clk 0:02:51.2]} 15... Kxg7 {[%clk 0:02:52.8]} 16. b3 {[%clk 0:02:43.2]} 16...
Rfd8 {[%clk 0:02:51.6]} 17. e3 {[%clk 0:02:42.6]} 17... e5 {[%clk 0:02:51]} 18.
Qc2 {[%clk 0:02:35.8]} 18... exd4 {[%clk 0:02:50.5]} 19. Qxe4 {[%clk 0:02:33.3]}
19... dxe3 {[%clk 0:02:46.1]} 20. fxe3 {[%clk 0:02:17.3]} 20... Re8 {[%clk
0:02:44.7]} 21. Qd4+ {[%clk 0:02:17.3]} 21... Kg8 {[%clk 0:02:44.9]} 22. Rae1
{[%clk 0:01:58.8]} 22... Rad8 {[%clk 0:02:41.3]} 23. Qc4 {[%clk 0:01:54.5]}
23... Rd7 {[%clk 0:02:35.2]} 24. Rf3 {[%clk 0:01:40.4]} 24... Re6 {[%clk
0:02:32.2]} 25. Kg2 {[%clk 0:01:16.9]} 25... Rd5 {[%clk 0:02:09.4]} 26. Re2
{[%clk 0:01:11.8]} 26... Rde5 {[%clk 0:02:06.7]} 27. Qf4 {[%clk 0:01:10.1]}
27... f5 {[%clk 0:02:03.4]} 28. Qc4 {[%clk 0:01:01.7]} 28... Kg7 {[%clk
0:02:00.5]} 29. Qf4 {[%clk 0:01:00.9]} 29... Re4 {[%clk 0:01:54.6]} 30. Qg5
{[%clk 0:00:58.2]} 30... Rg4 {[%clk 0:01:50.8]} 0-1

[Event "Late-Titled-Tuesday-Blitz-February-27-2024"]
[Site "Chess.com"]
[Date "2024.02.27"]
[Round "8"]
[White "Boorchess"]
[Black "Godzillator"]
[Result "1-0"]
[WhiteElo "2528"]
[BlackElo "2362"]
[TimeControl "180+1"]
[EndTime "15:24:43 PST"]
[Termination "Boorchess won by resignation"]

1. d4 {[%clk 0:02:57.7]} 1... d5 {[%clk 0:02:59.4]} 2. c4 {[%clk 0:02:57.5]}
2... e6 {[%clk 0:02:58.4]} 3. Nf3 {[%clk 0:02:57]} 3... a6 {[%clk 0:02:57.5]} 4.
Nbd2 {[%clk 0:02:51.6]} 4... Nf6 {[%clk 0:02:57.3]} 5. g3 {[%clk 0:02:50.9]}
5... Be7 {[%clk 0:02:54.9]} 6. Bg2 {[%clk 0:02:50.6]} 6... O-O {[%clk 0:02:55]}
7. O-O {[%clk 0:02:50.4]} 7... c6 {[%clk 0:02:55.4]} 8. Qc2 {[%clk 0:02:48.4]}
8... Nbd7 {[%clk 0:02:54.2]} 9. Rd1 {[%clk 0:02:47.3]} 9... Re8 {[%clk
0:02:53.4]} 10. e4 {[%clk 0:02:46.7]} 10... dxe4 {[%clk 0:02:53.1]} 11. Nxe4
{[%clk 0:02:46.8]} 11... Nxe4 {[%clk 0:02:53.4]} 12. Qxe4 {[%clk 0:02:47]} 12...
Nf6 {[%clk 0:02:53.7]} 13. Qe2 {[%clk 0:02:46.2]} 13... Qc7 {[%clk 0:02:53.1]}
14. Bf4 {[%clk 0:02:44.3]} 14... Bd6 {[%clk 0:02:50.9]} 15. Bxd6 {[%clk
0:02:43.5]} 15... Qxd6 {[%clk 0:02:51.1]} 16. c5 {[%clk 0:02:41.8]} 16... Qc7
{[%clk 0:02:49.2]} 17. Ne5 {[%clk 0:02:41.7]} 17... Nd7 {[%clk 0:02:43.5]} 18.
Nc4 {[%clk 0:02:40.9]} 18... e5 {[%clk 0:02:40]} 19. Nd6 {[%clk 0:02:26.8]}
19... Re6 {[%clk 0:02:39.7]} 20. Bh3 {[%clk 0:02:21.9]} 20... Rh6 {[%clk
0:02:37.2]} 21. Bf5 {[%clk 0:01:58.8]} 21... g6 {[%clk 0:02:19.2]} 22. Bg4
{[%clk 0:01:54.5]} 22... b5 {[%clk 0:01:55.6]} 23. Rac1 {[%clk 0:01:49.3]} 23...
Bb7 {[%clk 0:01:51.4]} 24. dxe5 {[%clk 0:01:46.8]} 24... Nf8 {[%clk 0:01:47.3]}
25. e6 {[%clk 0:01:41.9]} 25... Nxe6 {[%clk 0:01:37.9]} 26. Bxe6 {[%clk
0:01:41.4]} 26... fxe6 {[%clk 0:01:38.1]} 27. Qxe6+ {[%clk 0:01:39.3]} 27... Kg7
{[%clk 0:01:34.8]} 28. Re1 {[%clk 0:01:34.9]} 28... Bc8 {[%clk 0:01:06]} 29.
Qe5+ {[%clk 0:01:31.6]} 29... Kg8 {[%clk 0:01:03.2]} 30. Qe8+ {[%clk 0:01:31.1]}
30... Kg7 {[%clk 0:01:03.3]} 31. Re7+ {[%clk 0:01:30.3]} 1-0

[Event "Late-Titled-Tuesday-Blitz-February-27-2024"]
[Site "Chess.com"]
[Date "2024.02.27"]
[Round "8"]
[White "MiguelEduardoGB"]
[Black "Charodej1"]
[Result "0-1"]
[WhiteElo "2155"]
[BlackElo "2311"]
[TimeControl "180+1"]
[EndTime "15:25:03 PST"]
[Termination "Charodej1 won by resignation"]

1. Nf3 {[%clk 0:02:58.2]} 1... d5 {[%clk 0:02:59.6]} 2. e3 {[%clk 0:02:58.2]}
2... Nf6 {[%clk 0:02:59.7]} 3. b3 {[%clk 0:02:58.6]} 3... c5 {[%clk 0:02:59.6]}
4. Bb2 {[%clk 0:02:59]} 4... Nc6 {[%clk 0:02:59.8]} 5. Bb5 {[%clk 0:02:59.2]}
5... Nd7 {[%clk 0:02:56.1]} 6. Bxc6 {[%clk 0:02:59.1]} 6... bxc6 {[%clk
0:02:56.1]} 7. O-O {[%clk 0:02:59.2]} 7... e6 {[%clk 0:02:54.1]} 8. d3 {[%clk
0:02:58.4]} 8... f6 {[%clk 0:02:50.7]} 9. e4 {[%clk 0:02:57.8]} 9... Be7 {[%clk
0:02:49.5]} 10. Nbd2 {[%clk 0:02:57.4]} 10... O-O {[%clk 0:02:48.5]} 11. Qe2
{[%clk 0:02:57.6]} 11... e5 {[%clk 0:02:46.4]} 12. c4 {[%clk 0:02:57.6]} 12...
Nb6 {[%clk 0:02:38.6]} 13. h3 {[%clk 0:02:54.4]} 13... a5 {[%clk 0:02:36.7]} 14.
a4 {[%clk 0:02:53.1]} 14... Ba6 {[%clk 0:02:35.9]} 15. Nh4 {[%clk 0:02:47.6]}
15... g6 {[%clk 0:02:30.7]} 16. Kh1 {[%clk 0:02:45.2]} 16... Bd6 {[%clk
0:01:55.6]} 17. Qf3 {[%clk 0:02:31.8]} 17... Bb7 {[%clk 0:01:46.8]} 18. Rad1
{[%clk 0:02:27.9]} 18... Qe7 {[%clk 0:01:44.5]} 19. Qg4 {[%clk 0:02:27.7]} 19...
Kh8 {[%clk 0:01:40.3]} 20. Qf3 {[%clk 0:02:19.6]} 20... f5 {[%clk 0:01:36.3]}
21. exf5 {[%clk 0:02:15.1]} 21... Qxh4 {[%clk 0:01:35.8]} 22. g4 {[%clk
0:02:02.2]} 22... gxf5 {[%clk 0:01:33.9]} 23. Rde1 {[%clk 0:01:54.3]} 23... fxg4
{[%clk 0:01:32.5]} 24. Qxg4 {[%clk 0:01:51.6]} 24... Qxg4 {[%clk 0:01:32.1]} 25.
hxg4 {[%clk 0:01:52.5]} 25... Rae8 {[%clk 0:01:31.8]} 26. f4 {[%clk 0:01:49.8]}
26... Nd7 {[%clk 0:01:29.6]} 27. Kg2 {[%clk 0:01:47.6]} 27... Kg8 {[%clk
0:01:29.5]} 28. f5 {[%clk 0:01:47.3]} 28... e4 {[%clk 0:01:21.7]} 29. dxe4
{[%clk 0:01:43.6]} 29... d4 {[%clk 0:01:20.6]} 30. Nf3 {[%clk 0:01:36.1]} 30...
Ne5 {[%clk 0:01:20.5]} 31. Ng5 {[%clk 0:01:33.7]} 31... Bc8 {[%clk 0:01:20.1]}
32. Rh1 {[%clk 0:01:25.2]} 32... Re7 {[%clk 0:01:17.5]} 33. Rh4 {[%clk
0:01:15.1]} 33... Rg7 {[%clk 0:01:13.7]} 34. Bc1 {[%clk 0:01:15.1]} 34... Nd3
{[%clk 0:01:12.7]} 35. e5 {[%clk 0:01:12.7]} 0-1

[Event "Late-Titled-Tuesday-Blitz-February-27-2024"]
[Site "Chess.com"]
[Date "2024.02.27"]
[Round "8"]
[White "alexrustemov"]
[Black "Zq1"]
[Result "1-0"]
[WhiteElo "2800"]
[BlackElo "2629"]
[TimeControl "180+1"]
[EndTime "15:25:12 PST"]
[Termination "alexrustemov won by resignation"]

1. d4 {[%clk 0:03:00.9]} 1... Nf6 {[%clk 0:02:59.1]} 2. Bg5 {[%clk 0:03:00.8]}
2... c5 {[%clk 0:02:58.5]} 3. c3 {[%clk 0:02:57.7]} 3... e6 {[%clk 0:02:54.4]}
4. e3 {[%clk 0:02:55.4]} 4... b6 {[%clk 0:02:49.6]} 5. Nd2 {[%clk 0:02:54.4]}
5... Bb7 {[%clk 0:02:49.4]} 6. Ngf3 {[%clk 0:02:53.5]} 6... Be7 {[%clk
0:02:49.2]} 7. Bd3 {[%clk 0:02:52.5]} 7... O-O {[%clk 0:02:47.2]} 8. Qe2 {[%clk
0:02:51.7]} 8... a6 {[%clk 0:02:39.4]} 9. a4 {[%clk 0:02:47.5]} 9... d6 {[%clk
0:02:31.8]} 10. h3 {[%clk 0:02:42.1]} 10... Nbd7 {[%clk 0:02:30.3]} 11. Bf4
{[%clk 0:02:41.2]} 11... Re8 {[%clk 0:02:27.3]} 12. O-O {[%clk 0:02:39.3]} 12...
h6 {[%clk 0:02:24.5]} 13. Bh2 {[%clk 0:02:37.7]} 13... cxd4 {[%clk 0:02:16.4]}
14. exd4 {[%clk 0:02:31.6]} 14... Ra7 {[%clk 0:02:09.3]} 15. Nc4 {[%clk
0:02:29.8]} 15... Nf8 {[%clk 0:01:59.3]} 16. Nfd2 {[%clk 0:02:25]} 16... d5
{[%clk 0:01:48.4]} 17. Ne5 {[%clk 0:02:23.8]} 17... N6d7 {[%clk 0:01:42.3]} 18.
Ndf3 {[%clk 0:02:16.4]} 18... Nxe5 {[%clk 0:01:40]} 19. Nxe5 {[%clk 0:02:16.1]}
19... Nd7 {[%clk 0:01:39.9]} 20. Rae1 {[%clk 0:02:06.6]} 20... Nxe5 {[%clk
0:01:39.3]} 21. Bxe5 {[%clk 0:02:06]} 21... Bd6 {[%clk 0:01:31.2]} 22. f4 {[%clk
0:01:57.3]} 22... Bxe5 {[%clk 0:01:23.3]} 23. fxe5 {[%clk 0:01:54.7]} 23... Qd7
{[%clk 0:01:22.2]} 24. Bc2 {[%clk 0:01:51.4]} 24... Qe7 {[%clk 0:00:58.6]} 25.
Qd3 {[%clk 0:01:49.6]} 25... g6 {[%clk 0:00:46.1]} 26. Rf6 {[%clk 0:01:49.4]}
26... Rf8 {[%clk 0:00:37]} 27. h4 {[%clk 0:01:47.8]} 27... Bc6 {[%clk
0:00:29.5]} 28. h5 {[%clk 0:01:46.2]} 28... Be8 {[%clk 0:00:29]} 29. Ref1 {[%clk
0:01:44.8]} 1-0

[Event "Late-Titled-Tuesday-Blitz-February-27-2024"]
[Site "Chess.com"]
[Date "2024.02.27"]
[Round "8"]
[White "Joachim100x"]
[Black "Seochesspie"]
[Result "0-1"]
[WhiteElo "2492"]
[BlackElo "2876"]
[TimeControl "180+1"]
[EndTime "15:25:42 PST"]
[Termination "Seochesspie won by resignation"]

1. Nc3 {[%clk 0:02:51.4]} 1... d5 {[%clk 0:02:58.7]} 2. d4 {[%clk 0:02:51.2]}
2... Nf6 {[%clk 0:02:58.1]} 3. Bg5 {[%clk 0:02:51.3]} 3... Nbd7 {[%clk
0:02:57.4]} 4. Qd3 {[%clk 0:02:50.2]} 4... e6 {[%clk 0:02:54.4]} 5. e4 {[%clk
0:02:50]} 5... dxe4 {[%clk 0:02:52.6]} 6. Nxe4 {[%clk 0:02:49.8]} 6... Be7
{[%clk 0:02:53]} 7. Nxf6+ {[%clk 0:02:48.9]} 7... Bxf6 {[%clk 0:02:52.4]} 8.
Bxf6 {[%clk 0:02:49.1]} 8... Qxf6 {[%clk 0:02:53.3]} 9. Nf3 {[%clk 0:02:49.5]}
9... O-O {[%clk 0:02:53.2]} 10. O-O-O {[%clk 0:02:49.1]} 10... c5 {[%clk
0:02:49.8]} 11. h4 {[%clk 0:02:45.8]} 11... cxd4 {[%clk 0:02:48.7]} 12. Qxd4
{[%clk 0:02:46]} 12... Qxd4 {[%clk 0:02:47.6]} 13. Nxd4 {[%clk 0:02:45.1]} 13...
Nf6 {[%clk 0:02:46.4]} 14. f3 {[%clk 0:02:41.9]} 14... Bd7 {[%clk 0:02:43.1]}
15. Bd3 {[%clk 0:02:39.7]} 15... Rac8 {[%clk 0:02:42.6]} 16. Rhe1 {[%clk
0:02:38.8]} 16... Nd5 {[%clk 0:02:41.1]} 17. Be4 {[%clk 0:02:35.6]} 17... Bc6
{[%clk 0:02:12.9]} 18. Nxc6 {[%clk 0:02:28.4]} 18... bxc6 {[%clk 0:02:13.8]} 19.
Rd4 {[%clk 0:02:23.1]} 19... Rc7 {[%clk 0:02:12.9]} 20. c4 {[%clk 0:02:13]}
20... Nf6 {[%clk 0:02:10.5]} 21. c5 {[%clk 0:02:07.5]} 21... Rfc8 {[%clk
0:02:07.1]} 22. Red1 {[%clk 0:02:06.7]} 22... Nd5 {[%clk 0:02:06.6]} 23. b4
{[%clk 0:02:00.5]} 23... Kf8 {[%clk 0:02:05.8]} 24. Kb2 {[%clk 0:01:59.8]} 24...
Rb8 {[%clk 0:02:05.2]} 25. Kb3 {[%clk 0:01:59.2]} 25... Rcb7 {[%clk 0:02:05.4]}
26. Bxd5 {[%clk 0:01:58.5]} 26... exd5 {[%clk 0:02:04.3]} 27. a3 {[%clk
0:01:57.5]} 27... a5 {[%clk 0:02:03.6]} 28. Re1 {[%clk 0:01:57.1]} 28... axb4
{[%clk 0:02:00]} 29. axb4 {[%clk 0:01:52.8]} 29... Rb5 {[%clk 0:01:59.2]} 30.
Rc1 {[%clk 0:01:47.8]} 30... Re8 {[%clk 0:01:56.9]} 31. Rc2 {[%clk 0:01:35]}
31... Re3+ {[%clk 0:01:55.9]} 32. Rc3 {[%clk 0:01:34.5]} 32... Re2 {[%clk
0:01:55.7]} 33. Rc2 {[%clk 0:01:34.7]} 33... Re1 {[%clk 0:01:56]} 34. Ra2 {[%clk
0:01:30.1]} 34... Re3+ {[%clk 0:01:53.8]} 35. Kc2 {[%clk 0:01:18.3]} 35... Rb8
{[%clk 0:01:51.9]} 36. Ra6 {[%clk 0:01:12.5]} 36... Rc8 {[%clk 0:01:51.5]} 37.
b5 {[%clk 0:01:03.1]} 37... cxb5 {[%clk 0:01:49.8]} 38. Rxd5 {[%clk 0:01:03.6]}
38... Re2+ {[%clk 0:01:46.8]} 39. Kc3 {[%clk 0:01:03.2]} 39... Rxg2 {[%clk
0:01:43.3]} 40. Ra7 {[%clk 0:01:02.3]} 40... g6 {[%clk 0:01:26.5]} 41. Rdd7
{[%clk 0:00:58.2]} 41... Rxc5+ {[%clk 0:01:25.9]} 42. Kd4 {[%clk 0:00:53.3]}
42... Rf5 {[%clk 0:01:26.8]} 43. Ke4 {[%clk 0:00:51.6]} 43... Re2+ {[%clk
0:01:25.8]} 44. Kd4 {[%clk 0:00:50.6]} 44... Rxf3 {[%clk 0:01:23.9]} 0-1

[Event "Late-Titled-Tuesday-Blitz-February-27-2024"]
[Site "Chess.com"]
[Date "2024.02.27"]
[Round "8"]
[White "HajiyevKanan"]
[Black "Fjal"]
[Result "1-0"]
[WhiteElo "2491"]
[BlackElo "2293"]
[TimeControl "180+1"]
[EndTime "15:25:53 PST"]
[Termination "HajiyevKanan won by checkmate"]

1. d4 {[%clk 0:03:00.9]} 1... d6 {[%clk 0:02:55.5]} 2. Nf3 {[%clk 0:03:01.8]}
2... Bg4 {[%clk 0:02:55.2]} 3. c4 {[%clk 0:03:00.8]} 3... Nd7 {[%clk 0:02:54.1]}
4. Nbd2 {[%clk 0:02:59.7]} 4... e5 {[%clk 0:02:54.4]} 5. e4 {[%clk 0:02:59.5]}
5... Ngf6 {[%clk 0:02:51.3]} 6. Qb3 {[%clk 0:02:57.6]} 6... Qc8 {[%clk
0:02:49.6]} 7. Bd3 {[%clk 0:02:53.9]} 7... Be7 {[%clk 0:02:48.5]} 8. h3 {[%clk
0:02:53.5]} 8... Bxf3 {[%clk 0:02:48.2]} 9. Nxf3 {[%clk 0:02:54.4]} 9... O-O
{[%clk 0:02:48.8]} 10. Bg5 {[%clk 0:02:50.3]} 10... exd4 {[%clk 0:02:48]} 11.
Nxd4 {[%clk 0:02:49]} 11... Nc5 {[%clk 0:02:47.6]} 12. Qc2 {[%clk 0:02:48]}
12... h6 {[%clk 0:02:48.2]} 13. Nf5 {[%clk 0:02:47.5]} 13... Qe6 {[%clk
0:02:42.4]} 14. Bh4 {[%clk 0:02:29.2]} 14... Rfe8 {[%clk 0:01:57.5]} 15. O-O
{[%clk 0:02:25.7]} 15... Bf8 {[%clk 0:01:26.2]} 16. Rfe1 {[%clk 0:02:25.3]}
16... g6 {[%clk 0:01:25.7]} 17. Nd4 {[%clk 0:02:22.5]} 17... Qe5 {[%clk
0:01:16.6]} 18. Nf3 {[%clk 0:02:21.7]} 18... Qe6 {[%clk 0:01:04.4]} 19. e5
{[%clk 0:02:21.9]} 19... Nxd3 {[%clk 0:00:47.3]} 20. Qxd3 {[%clk 0:02:16.2]}
20... Nd7 {[%clk 0:00:44.3]} 21. exd6 {[%clk 0:01:50.3]} 21... Qxd6 {[%clk
0:00:45.2]} 22. Qxd6 {[%clk 0:01:39.8]} 22... Bxd6 {[%clk 0:00:46.1]} 23. Rad1
{[%clk 0:01:36.3]} 23... Nc5 {[%clk 0:00:32.6]} 24. Nd4 {[%clk 0:01:31.2]} 24...
g5 {[%clk 0:00:28.8]} 25. Bg3 {[%clk 0:01:28.4]} 25... Bxg3 {[%clk 0:00:29.3]}
26. fxg3 {[%clk 0:01:29.3]} 26... Kg7 {[%clk 0:00:20.9]} 27. Nf5+ {[%clk
0:01:27.8]} 27... Kg6 {[%clk 0:00:21.4]} 28. g4 {[%clk 0:01:28.4]} 28... Rad8
{[%clk 0:00:18.4]} 29. Rxd8 {[%clk 0:01:21.2]} 29... Rxd8 {[%clk 0:00:18]} 30.
Re7 {[%clk 0:01:20.7]} 30... Rd7 {[%clk 0:00:18.6]} 31. Re8 {[%clk 0:01:20.3]}
31... Rd1+ {[%clk 0:00:17.5]} 32. Kh2 {[%clk 0:01:18]} 32... Ne6 {[%clk
0:00:16.9]} 33. Rh8 {[%clk 0:01:16.4]} 33... h5 {[%clk 0:00:14.8]} 34. Rh6#
{[%clk 0:01:16.3]} 1-0

[Event "Late-Titled-Tuesday-Blitz-February-27-2024"]
[Site "Chess.com"]
[Date "2024.02.27"]
[Round "8"]
[White "KorolDimitriy75"]
[Black "jk13"]
[Result "0-1"]
[WhiteElo "2445"]
[BlackElo "2666"]
[TimeControl "180+1"]
[EndTime "15:25:59 PST"]
[Termination "jk13 won by resignation"]

1. d4 {[%clk 0:03:00.9]} 1... Nf6 {[%clk 0:02:59]} 2. c4 {[%clk 0:03:01.2]} 2...
e6 {[%clk 0:02:59.7]} 3. Nc3 {[%clk 0:03:01.6]} 3... Bb4 {[%clk 0:03:00.4]} 4.
Qc2 {[%clk 0:03:02]} 4... O-O {[%clk 0:03:00.3]} 5. e4 {[%clk 0:03:02.4]} 5...
d5 {[%clk 0:03:00.4]} 6. cxd5 {[%clk 0:03:03.3]} 6... exd5 {[%clk 0:03:00.7]} 7.
e5 {[%clk 0:03:04.2]} 7... Ne4 {[%clk 0:03:01.3]} 8. Bd3 {[%clk 0:03:04.6]} 8...
c5 {[%clk 0:03:02]} 9. Ne2 {[%clk 0:03:05]} 9... cxd4 {[%clk 0:02:59.7]} 10.
Nxd4 {[%clk 0:03:05.9]} 10... Nd7 {[%clk 0:02:59.9]} 11. f4 {[%clk 0:03:05.6]}
11... Ndc5 {[%clk 0:03:00.5]} 12. O-O {[%clk 0:03:05]} 12... Bxc3 {[%clk
0:02:48.9]} 13. bxc3 {[%clk 0:03:05]} 13... Nxd3 {[%clk 0:02:47.5]} 14. Qxd3
{[%clk 0:03:05.9]} 14... Qc7 {[%clk 0:02:48]} 15. Ba3 {[%clk 0:02:46.4]} 15...
Rd8 {[%clk 0:02:44.3]} 16. Rac1 {[%clk 0:02:43.8]} 16... Nc5 {[%clk 0:02:13.7]}
17. Qe3 {[%clk 0:02:25.8]} 17... b6 {[%clk 0:02:12.9]} 18. Nb5 {[%clk 0:02:09]}
18... Qe7 {[%clk 0:02:05.7]} 19. Nd6 {[%clk 0:02:08.7]} 19... Rxd6 {[%clk
0:02:02.8]} 20. f5 {[%clk 0:01:42.2]} 20... f6 {[%clk 0:01:40.8]} 21. e6 {[%clk
0:01:33.3]} 21... Ba6 {[%clk 0:01:35.1]} 22. Rf4 {[%clk 0:01:29.8]} 22... Nd3
{[%clk 0:01:26.6]} 23. Rd4 {[%clk 0:01:02.8]} 23... Nxc1 {[%clk 0:01:22]} 24.
Qxc1 {[%clk 0:00:55.5]} 24... Qc7 {[%clk 0:01:17.6]} 25. Qf4 {[%clk 0:00:51.8]}
25... Qxc3 {[%clk 0:01:05.9]} 26. Bb4 {[%clk 0:00:20.1]} 26... Qa1+ {[%clk
0:01:01.4]} 27. Kf2 {[%clk 0:00:17.9]} 27... Qf1+ {[%clk 0:01:00.9]} 28. Kg3
{[%clk 0:00:17.8]} 28... Qxf4+ {[%clk 0:01:00.4]} 29. Kxf4 {[%clk 0:00:18.7]}
29... Rc6 {[%clk 0:00:58.6]} 0-1

[Event "Late-Titled-Tuesday-Blitz-February-27-2024"]
[Site "Chess.com"]
[Date "2024.02.27"]
[Round "8"]
[White "morte-negra"]
[Black "toninhojit"]
[Result "0-1"]
[WhiteElo "2060"]
[BlackElo "2466"]
[TimeControl "180+1"]
[EndTime "15:26:05 PST"]
[Termination "toninhojit won by resignation"]

1. e4 {[%clk 0:02:48.5]} 1... e5 {[%clk 0:02:57.3]} 2. f4 {[%clk 0:02:47.9]}
2... exf4 {[%clk 0:02:54]} 3. Bc4 {[%clk 0:02:48.2]} 3... d5 {[%clk 0:02:52.4]}
4. Bxd5 {[%clk 0:02:47.3]} 4... Nf6 {[%clk 0:02:52.5]} 5. Nc3 {[%clk 0:02:46]}
5... c6 {[%clk 0:02:49.9]} 6. Bb3 {[%clk 0:02:43.7]} 6... Bc5 {[%clk 0:02:48.5]}
7. Nf3 {[%clk 0:02:39.7]} 7... Bg4 {[%clk 0:02:48.2]} 8. d4 {[%clk 0:02:22.9]}
8... Bxf3 {[%clk 0:02:46.8]} 9. Qxf3 {[%clk 0:02:23.2]} 9... Bxd4 {[%clk
0:02:36.9]} 10. Bxf4 {[%clk 0:02:20.9]} 10... Qa5 {[%clk 0:02:25.8]} 11. O-O-O
{[%clk 0:02:14.1]} 11... Bxc3 {[%clk 0:02:21.6]} 12. bxc3 {[%clk 0:02:12.5]}
12... O-O {[%clk 0:02:16]} 13. e5 {[%clk 0:02:07.7]} 13... Nd5 {[%clk
0:02:16.1]} 14. Bxd5 {[%clk 0:02:04.2]} 14... cxd5 {[%clk 0:02:17]} 15. Rxd5
{[%clk 0:01:59.4]} 15... Qxa2 {[%clk 0:02:15.7]} 16. Kd2 {[%clk 0:01:56.6]}
16... Nc6 {[%clk 0:02:13.4]} 17. Qd3 {[%clk 0:01:45.3]} 17... Rad8 {[%clk
0:02:11.3]} 18. Rd6 {[%clk 0:01:36.6]} 18... Qa5 {[%clk 0:01:52.3]} 19. Re1
{[%clk 0:01:20.1]} 19... Qc5 {[%clk 0:01:51.1]} 20. Re2 {[%clk 0:01:08.3]} 20...
Rc8 {[%clk 0:01:45.3]} 21. g3 {[%clk 0:00:56]} 21... Na5 {[%clk 0:01:33.6]} 22.
Rd4 {[%clk 0:00:45.9]} 22... Nc4+ {[%clk 0:01:23.1]} 23. Ke1 {[%clk 0:00:45.6]}
23... b5 {[%clk 0:01:18.6]} 24. Kf1 {[%clk 0:00:32.9]} 24... Qc6 {[%clk
0:01:13.1]} 25. Kg1 {[%clk 0:00:25.7]} 25... a5 {[%clk 0:01:06.7]} 26. h4 {[%clk
0:00:13.7]} 26... a4 {[%clk 0:01:07]} 27. Bc1 {[%clk 0:00:07.5]} 27... a3 {[%clk
0:01:04.6]} 0-1